[Event "1st Gujarat GM Open 2018"]
[Site "Ahmedabad"]
[Date "2018.10.07"]
[Round "3"]
[White "Pranav Vijay"]
[Black "Neverov, Valeriy"]
[Result "0-1"]
[ECO "A48"]
[WhiteElo "2265"]
[BlackElo "2488"]
[Annotator "ChessBase"]
[PlyCount "122"]
[EventDate "2018.10.05"]
[EventType "swiss"]
[EventCountry "IND"]
[SourceTitle "playchess.com"]
[Source "ChessBase"]
[SourceQuality "1"]
[TimeControl "5400+30"]

1. d4 {[%emt 0:00:00]} Nf6 {[%emt 0:00:03]} 2. Nf3 {[%emt 0:00:00]} g6 {[%emt 0:00:54]} 3. Nc3 {[%emt 0:04:22]} d5 {[%emt 0:05:12]} 4. Bf4 {[%emt 0:00:54]} c6 {[%emt 0:04:38]} 5. e3 {[%emt 0:01:36]} Bg7 {[%emt 0:01:11]} 6. Bd3 {[%emt 0:01:01]} Bg4 {[%emt 0:02:21]} 7. h3 {[%emt 0:03:27]} Bxf3 {[%emt 0:01:02]} 8. Qxf3 {[%emt 0:00:42]} Nbd7 {[%emt 0:00:15]} 9. O-O {[%emt 0:01:40]} O-O {[%emt 0:00:19]} 10. Rfd1 {[%emt 0:11:50]} Qb6 {[%emt 0:12:23]} 11. a3 {[%emt 0:01:39]} Nh5 {[%emt 0:05:08]} 12. Bh2 {[%emt 0:12:56]} e5 {[%emt 0:01:57]} 13. Bf5 {[%emt 0:02:44]} gxf5 {[%emt 0:30:13]} 14. Qxh5 {[%emt 0:00:26]} f4 {[%emt 0:00:08]} 15. exf4 {[%emt 0:03:30]} exd4 {[%emt 0:00:19]} 16. Ne2 {[%emt 0:00:10]} Nf6 {[%emt 0:01:36]} 17. Qf3 {[%emt 0:02:43]} Ne4 {[%emt 0:01:15]} 18. f5 {[%emt 0:03:52]} Qxb2 {[%emt 0:00:56]} 19. Nf4 {[%emt 0:00:24]} Qc3 {[%emt 0:04:04]} 20. Qg4 {[%emt 0:01:35]} Nf6 {[%emt 0:10:38]} 21. Qh4 {[%emt 0:00:22]} Rfe8 {[%emt 0:00:31]} 22. g4 {[%emt 0:01:52]} h6 {[%emt 0:01:15]} 23. Nd3 {[%emt 0:02:52]} Re4 {[%emt 0:11:31]} 24. Be5 Rxe5 {[%emt 0:00:55]} 25. Nxe5 {[%emt 0:08:49]} Ne4 {[%emt 0:02:07]} 26. Nd3 {[%emt 0:02:24]} Qxc2 {[%emt 0:00:41]} 27. Rac1 {[%emt 0:00:58]} Qe2 {[%emt 0:00:20]} 28. g5 {[%emt 0:03:43]} hxg5 {[%emt 0:01:26]} 29. Qg4 {[%emt 0:00:21]} Nc3 {[%emt 0:00:35]} 30. Qxg5 {[%emt 0:01:16]} f6 {[%emt 0:00:20]} 31. Qd2 {[%emt 0:00:19]} Re8 {[%emt 0:00:18]} 32. Nf4 {[%emt 0:01:43]} Qxd2 {[%emt 0:00:28]} 33. Rxd2 {[%emt 0:00:01]} Bh6 {[%emt 0:00:16]} 34. Rxd4 {[%emt 0:00:09]} Ne2+ {[%emt 0:01:07]} 35. Nxe2 {[%emt 0:00:07]} Bxc1 {[%emt 0:00:07]} 36. Nxc1 {[%emt 0:00:26]} Re1+ {[%emt 0:00:03]} 37. Kg2 {[%emt 0:00:04]} Rxc1 {[%emt 0:00:01]} 38. Rg4+ {[%emt 0:00:04]} Kf7 {[%emt 0:01:04]} 39. Rh4 {[%emt 0:00:05]} Kg7 {[%emt 0:00:42]} 40. Rg4+ {[%emt 0:00:02]} Kf7 {[%emt 0:00:05]} 41. Rh4 {[%emt 0:00:04]} Rb1 {[%emt 0:01:08]} 42. Rh7+ {[%emt 0:00:14]} Kg8 {[%emt 0:00:34]} 43. Rd7 {[%emt 0:00:26]} Rb3 {[%emt 0:00:34]} 44. a4 {[%emt 0:00:33]} a5 {[%emt 0:00:08]} 45. h4 {[%emt 0:00:46]} b5 {[%emt 0:00:46]} 46. axb5 {[%emt 0:00:24]} cxb5 {[%emt 0:00:04]} 47. Rxd5 {[%emt 0:00:18]} a4 {[%emt 0:00:04]} 48. Rd8+ {[%emt 0:00:18]} Kg7 {[%emt 0:00:25]} 49. Rd7+ {[%emt 0:00:04]} Kf8 {[%emt 0:01:09]} 50. h5 {[%emt 0:01:33]} a3 {[%emt 0:00:40]} 51. h6 {[%emt 0:00:36]} Kg8 {[%emt 0:00:04]} 52. Ra7 {[%emt 0:00:45]} b4 {[%emt 0:00:07]} 53. f3 {[%emt 0:00:06]} Rb2+ {[%emt 0:01:07]} 54. Kg3 {[%emt 0:00:03]} a2 {[%emt 0:00:09]} 55. Kg4 {[%emt 0:00:12]} Rg2+ {[%emt 0:01:10]} 56. Kh3 {[%emt 0:03:56]} Rc2 {[%emt 0:00:50]} 57. Kg4 {[%emt 0:00:40]} b3 {[%emt 0:00:35]} 58. Kh5 {[%emt 0:00:05]} Rh2+ {[%emt 0:00:24]} 59. Kg6 {[%emt 0:00:03]} Rg2+ {[%emt 0:00:05]} 60. Kxf6 {[%emt 0:00:04]} Rg1 {[%emt 0:00:21]} 61. Ra8+ {[%emt 0:01:20]} Kh7 {[%emt 0:00:08]} 0-1

[Event "1st Gujarat GM Open 2018"]
[Site "Ahmedabad"]
[Date "2018.10.07"]
[Round "3"]
[White "Srija, Seshadri"]
[Black "Babujian, Levon"]
[Result "0-1"]
[ECO "B41"]
[WhiteElo "2246"]
[BlackElo "2456"]
[Annotator "ChessBase"]
[PlyCount "124"]
[EventDate "2018.10.05"]
[EventType "swiss"]
[EventCountry "IND"]
[SourceTitle "playchess.com"]
[Source "ChessBase"]
[SourceQuality "1"]
[TimeControl "5400+30"]

1. e4 {[%emt 0:00:00]} c5 {[%emt 0:00:00]} 2. Nf3 {[%emt 0:00:00]} e6 {[%emt 0:00:00]} 3. d4 {[%emt 0:00:00]} cxd4 {[%emt 0:00:00]} 4. Nxd4 {[%emt 0:00:00]} a6 {[%emt 0:00:00]} 5. c4 {[%emt 0:00:11]} d6 {[%emt 0:00:29]} 6. Nc3 {[%emt 0:00:26]} Nf6 {[%emt 0:00:06]} 7. Be3 {[%emt 0:00:48]} Be7 {[%emt 0:00:31]} 8. Be2 {[%emt 0:01:09]} O-O {[%emt 0:00:09]} 9. O-O {[%emt 0:00:11]} Nbd7 {[%emt 0:00:09]} 10. f3 {[%emt 0:00:51]} Qc7 {[%emt 0:00:06]} 11. Rc1 {[%emt 0:00:38]} b6 {[%emt 0:00:23]} 12. a3 {[%emt 0:02:12]} Bb7 {[%emt 0:01:42]} 13. b4 {[%emt 0:00:17]} Rac8 {[%emt 0:00:28]} 14. Kh1 {[%emt 0:01:22]} Qb8 {[%emt 0:00:38]} 15. Bg1 {[%emt 0:00:12]} Rfe8 {[%emt 0:02:10]} 16. Qe1 {[%emt 0:04:42]} Bd8 {[%emt 0:03:01]} 17. h4 {[%emt 0:12:52]} d5 {[%emt 0:03:28]} 18. Bh2 {[%emt 0:04:30]} Bc7 {[%emt 0:00:37]} 19. Bxc7 {[%emt 0:00:11]} Rxc7 {[%emt 0:00:17]} 20. cxd5 {[%emt 0:06:04]} exd5 {[%emt 0:02:20]} 21. exd5 {[%emt 0:00:47]} Bxd5 {[%emt 0:04:42]} 22. Qd2 {[%emt 0:12:37]} Bc4 {[%emt 0:03:10]} 23. Rfe1 {[%emt 0:04:24]} Ne5 {[%emt 0:05:02]} 24. Nf5 {[%emt 0:07:23]} Be6 {[%emt 0:02:08]} 25. Qg5 {[%emt 0:07:25]} Bxf5 {[%emt 0:01:57]} 26. Qxf5 {[%emt 0:00:02]} Ng6 {[%emt 0:00:44]} 27. Ne4 {[%emt 0:02:05]} Nxe4 {[%emt 0:01:04]} 28. fxe4 {[%emt 0:00:02]} Nxh4 {[%emt 0:03:27]} 29. Qg4 {[%emt 0:03:59]} Ng6 {[%emt 0:01:34]} 30. Bxa6 {[%emt 0:00:15]} Ne5 {[%emt 0:00:33]} 31. Qf4 {[%emt 0:02:53]} Rce7 {[%emt 0:01:59]} 32. Rc3 {[%emt 0:01:48]} b5 {[%emt 0:01:44]} 33. Rec1 {[%emt 0:02:47]} Qb6 {[%emt 0:00:09]} 34. Bc8 {[%emt 0:00:10]} Nc4 {[%emt 0:00:22]} 35. Bf5 {[%emt 0:01:16]} g6 {[%emt 0:00:33]} 36. Qh6 {[%emt 0:01:17]} Qd4 {[%emt 0:00:42]} 37. a4 {[%emt 0:03:26]} gxf5 {[%emt 0:01:46]} 38. axb5 {[%emt 0:02:06]} Re6 {[%emt 0:00:26]} 39. Qg5+ {[%emt 0:00:52]} Rg6 {[%emt 0:00:25]} 40. Rxc4 {[%emt 0:00:17]} Qb6 {[%emt 0:01:35]} 41. Rc6 {[%emt 0:01:07]} Qxc6 {[%emt 0:00:11]} 42. bxc6 {[%emt 0:01:13]} Rxg5 {[%emt 0:00:05]} 43. b5 {[%emt 0:00:17]} fxe4 {[%emt 0:00:39]} 44. b6 {[%emt 0:00:18]} Rb5 {[%emt 0:02:25]} 45. b7 {[%emt 0:00:10]} Kg7 {[%emt 0:00:17]} 46. Ra1 {[%emt 0:02:43]} Rb8 {[%emt 0:00:58]} 47. Ra7 {[%emt 0:06:28]} e3 48. c7 {[%emt 0:00:08]} e2 {[%emt 0:01:10]} 49. Ra1 {[%emt 0:00:09]} R5xb7 {[%emt 0:01:35]} 50. cxb8=Q {[%emt 0:00:08]} Rxb8 {[%emt 0:00:04]} 51. Re1 {[%emt 0:00:07]} Re8 {[%emt 0:00:08]} 52. Kg1 {[%emt 0:00:08]} Kg6 {[%emt 0:00:08]} 53. Kf2 {[%emt 0:00:07]} Kg5 {[%emt 0:00:09]} 54. Rxe2 {[%emt 0:00:12]} Rxe2+ {[%emt 0:00:05]} 55. Kxe2 {[%emt 0:00:04]} Kg4 {[%emt 0:00:11]} 56. Kf2 {[%emt 0:00:09]} h5 {[%emt 0:00:12]} 57. Kf1 {[%emt 0:00:45]} Kg3 {[%emt 0:00:05]} 58. Kg1 {[%emt 0:00:04]} h4 {[%emt 0:00:04]} 59. Kh1 {[%emt 0:01:37]} h3 {[%emt 0:00:29]} 60. Kg1 {[%emt 0:00:31]} Kg4 {[%emt 0:00:11]} 61. Kh1 {[%emt 0:01:11]} hxg2+ {[%emt 0:00:12]} 62. Kxg2 {[%emt 0:00:07]} f5 {[%emt 0:00:08]} 0-1

[Event "1st Gujarat GM Open 2018"]
[Site "Ahmedabad"]
[Date "2018.10.07"]
[Round "3"]
[White "Navalgund, Niranjan"]
[Black "Bhoopnath"]
[Result "1-0"]
[ECO "E70"]
[WhiteElo "2245"]
[BlackElo "1645"]
[Annotator "NA"]
[PlyCount "93"]
[EventDate "2018.10.05"]
[EventType "swiss"]
[EventCountry "IND"]
[SourceTitle "playchess.com"]
[Source "ChessBase"]
[SourceQuality "1"]
[TimeControl "5400+30"]

1. d4 {[%emt 0:00:00]} Nf6 {[%emt 0:00:00]} 2. c4 {[%emt 0:00:00]} g6 {[%emt 0:00:04]} 3. Nc3 {[%emt 0:00:00]} Bg7 {[%emt 0:00:35]} 4. e4 {[%emt 0:00:00]} d6 {[%emt 0:00:19]} 5. Bd3 {[%emt 0:00:28]} O-O {[%emt 0:00:48]} 6. Nge2 {[%emt 0:00:02]} c5 {[%emt 0:00:59]} 7. d5 {[%emt 0:00:14]} e6 {[%emt 0:00:56]} 8. h3 {[%emt 0:00:05]} exd5 {[%emt 0:00:42]} 9. exd5 {[%emt 0:00:02]} Na6 {[%emt 0:02:48]} 10. O-O {[%emt 0:01:49]} Bd7 {[%emt 0:02:53]} 11. Bg5 {[%emt 0:04:22]} h6 {[%emt 0:05:19]} 12. Bh4 {[%emt 0:00:02]} Nc7 {[%emt 0:08:18]} 13. f4 {[%emt 0:00:43]} Qc8 {[%emt 0:01:11]} 14. f5 {[%emt 0:05:18]} Nh5 {[%emt 0:08:11]} 15. f6 {[%emt 0:40:15]} Bh8 {[%emt 0:32:38]} 16. Ne4 {[%emt 0:01:51]} Bxh3 {[%emt 0:08:45]} 17. gxh3 {[%emt 0:03:23]} Qxh3 {[%emt 0:00:38]} 18. Bg3 {[%emt 0:00:16]} Rfe8 {[%emt 0:06:33]} 19. Nf4 {[%emt 0:04:30]} Nxf4 {[%emt 0:01:04]} 20. Bxf4 {[%emt 0:00:05]} g5 {[%emt 0:03:13]} 21. Bxd6 {[%emt 0:02:04]} Rxe4 {[%emt 0:04:12]} 22. Bxe4 {[%emt 0:00:02]} Ne8 {[%emt 0:01:36]} 23. Bxc5 {[%emt 0:01:05]} Nxf6 {[%emt 0:01:03]} 24. Bg2 {[%emt 0:00:10]} Qh4 {[%emt 0:00:18]} 25. Bf2 {[%emt 0:02:06]} Qxc4 {[%emt 0:00:29]} 26. Rc1 {[%emt 0:00:02]} Qxa2 {[%emt 0:00:44]} 27. Bd4 {[%emt 0:00:03]} Qa6 {[%emt 0:00:45]} 28. Qf3 {[%emt 0:00:14]} Re8 {[%emt 0:01:06]} 29. Bxf6 {[%emt 0:00:24]} Qb6+ {[%emt 0:02:02]} 30. Kh1 {[%emt 0:00:03]} Bxf6 {[%emt 0:00:08]} 31. Qxf6 {[%emt 0:00:03]} Qxf6 {[%emt 0:00:43]} 32. Rxf6 {[%emt 0:00:02]} Kg7 {[%emt 0:00:30]} 33. Rcf1 {[%emt 0:00:01]} Re2 {[%emt 0:00:26]} 34. Rxf7+ {[%emt 0:00:03]} Kg6 {[%emt 0:00:29]} 35. Rxb7 {[%emt 0:00:10]} g4 {[%emt 0:00:19]} 36. d6 {[%emt 0:00:11]} h5 {[%emt 0:00:11]} 37. Rd1 {[%emt 0:00:26]} Re8 {[%emt 0:00:41]} 38. Re7 {[%emt 0:00:15]} Rd8 {[%emt 0:00:06]} 39. d7 {[%emt 0:00:03]} Kg5 {[%emt 0:00:16]} 40. Re8 {[%emt 0:00:04]} Rxd7 {[%emt 0:00:19]} 41. Rxd7 {[%emt 0:00:03]} Kh4 {[%emt 0:00:14]} 42. Re5 {[%emt 0:00:09]} a5 {[%emt 0:00:14]} 43. Rd4 {[%emt 0:00:20]} a4 {[%emt 0:00:17]} 44. Kh2 {[%emt 0:00:53]} a3 {[%emt 0:00:20]} 45. Bd5 {[%emt 0:00:14]} axb2 {[%emt 0:00:22]} 46. Bf7 {[%emt 0:00:09]} b1=Q {[%emt 0:00:18]} 47. Rxh5# {[%emt 0:00:02]} 1-0

[Event "1st Gujarat GM Open 2018"]
[Site "Ahmedabad"]
[Date "2018.10.07"]
[Round "3"]
[White "Kumar, Gaurav"]
[Black "Sudarshan Bhat"]
[Result "1/2-1/2"]
[ECO "C60"]
[WhiteElo "2236"]
[BlackElo "1840"]
[Annotator "NA"]
[PlyCount "46"]
[EventDate "2018.10.05"]
[EventType "swiss"]
[EventCountry "IND"]
[SourceTitle "playchess.com"]
[Source "ChessBase"]
[SourceQuality "1"]
[TimeControl "5400+30"]

{[%evp 13,39,32,40,19,25,21,24,-2,66,27,12,4,0,0,0,-14,3,0,0,-497,849,120,29999,-25,-26,-829,63,66]} 1. e4 {[%emt 0:00:00]} e5 {[%emt 0:00:00]} 2. Nf3 {[%emt 0:00:00]} Nc6 {[%emt 0:00:03]} 3. Bb5 {[%emt 0:02:39]} g6 {[%emt 0:02:35]} 4. O-O {[%emt 0:00:31]} Bg7 {[%emt 0:00:34]} 5. c3 {[%emt 0:00:10]} d6 {[%emt 0:01:58]} 6. d4 {[%emt 0:01:28]} Bd7 {[%emt 0:00:13]} 7. Bg5 {[%emt 0:01:40]} Nge7 {[%emt 0:02:15] LiveBook: 7 Games. C60: Ruy Lopez: Unusual Black 3rd moves and 3...g6} (7... Nf6 8. Bxc6 Bxc6 9. dxe5 dxe5 10. Nxe5 Qxd1 11. Rxd1 Nxe4 12. Bf4 g5 13. Nxc6 gxf4 14. Nb4 Rd8 15. Rxd8+ Kxd8 {½-½ (30) Dreev,A (2660)-Gelashvili,T (2605) Benidorm 2009}) 8. Qd2 {[%emt 0:02:35]} h6 {[%emt 0:02:20]} 9. Be3 {[%emt 0:01:14]} g5 {[%emt 0:00:37] The position is equal.} 10. dxe5 {[%emt 0:02:28]} dxe5 $146 {[%emt 0:03:42]} ({Predecessor:} 10... Nxe5 $11 11. Bxd7+ Qxd7 12. Nxe5 Bxe5 (12... dxe5 13. Qxd7+ Kxd7 14. Rd1+ Ke6 15. Na3 {½-½ (45) Dmochowska,A (1790)-Czerniawski,M (2018) Poland 2014})) 11. Bc5 {[%emt 0:08:08]} a6 {[%emt 0:05:12]} 12. Be2 {[%emt 0:04:51]} Ng6 {[%emt 0:02:41]} 13. Rd1 {[%emt 0:00:23]} Nf4 {[%emt 0:06:38]} 14. Bc4 {[%emt 0:07:18]} Be6 {[%emt 0:09:01]} 15. Bxe6 {[%emt 0:11:03]} Nxe6 {[%emt 0:01:26]} 16. Qd3 $2 (16. Ba3 $11 {and White stays safe.}) 16... Qd6 $4 ({Much less strong is} 16... Nxc5 17. Qe2 $19) (16... Qxd3 $19 17. Rxd3 Nxc5) 17. Qxd6 $2 {[%emt 0:00:39]} (17. Bxd6 $18 Rd8 18. Qc2 cxd6 19. Nbd2) 17... Rc8 $2 {[#]} (17... cxd6 $16 18. Bxd6 f6) 18. Qd8+ $2 (18. Qd7# {mates}) 18... Rxd8 $11 {[%emt 0:01:26]} 19. Rd4 $2 (19. Rxd8+ $11 Kxd8 20. Be3) 19... Rd6 $2 (19... exd4 $19 20. Bxd4 Nexd4 21. cxd4 Nxd4) 20. Rxd6 {[%emt 0:01:13] Kd8 [%clk 0:56:25] Be3+ [%clk 0:49:03] Kc8 [%clk 0:52:12] Nbd2 [%clk 0:49:05] Rd8 [%clk 0:51:39] b4 [%clk 0:39:30] Precision: White =  9%, Black = 35%.} Bf6 {[%emt 0:19:16] Nb3 [%clk 0:36:23]} 21. g4 {[%emt 0:18:23] Nfd2 [%clk 0:34:25] Bg5 [%clk 0:33:04] Bxg5 [%clk 0:23:02] Nxg5 [%clk 0:32:51] Kf1 [%clk 0:23:12]} a5 {[%emt 0:13:37] b5 [%clk 0:14:37] Ne7 [%clk 0:15:47]} 22. a4 {[%emt 0:22:03]} b6 {[%emt 0:13:03] Ke2 [%clk 0:10:12] Ng6 [%clk 0:13:57] g3 [%clk 0:10:30] h5 [%clk 0:12:42] Rc1 [%clk 0:09:06] Ne6 [%clk 0:06:58] f3 [%clk 0:08:32]} 23. Nxg5 {[%emt 0:08:29] fxg4 [%clk 0:05:09] hxg4 [%clk 0:06:29] Rf1 [%clk 0:05:30] Rh8 [%clk 0:05:27] Rf2 [%clk 0:05:55] Kd7 [%clk 0:05:16] Na1+ [%clk 0:05:40] Ke6 [%clk 0:03:55] Nc2+ [%clk 0:03:38] Nh3 [%clk 0:03:51] Rf1+ [%clk 0:02:29]} Nxg5 {[%emt 0:11:00] Rf2+ [%clk 0:01:08] Nh3 [%clk 0:04:09] Rf1+ [%clk 0:00:55] Ng5 [%clk 0:03:46] Rh1+ [%clk 0:00:43] Ne7 [%clk 0:01:23] Ne3+ [%clk 0:01:04] f5 exf5+ Nxf5 Nxf5+ Kxf5 Rf1+ Ke6 Rf2+} 1/2-1/2

[Event "1st Gujarat GM Open 2018"]
[Site "Ahmedabad"]
[Date "2018.10.07"]
[Round "3"]
[White "Moksh Amit Doshi"]
[Black "Akash G"]
[Result "0-1"]
[ECO "E81"]
[WhiteElo "2224"]
[BlackElo "2424"]
[Annotator "ChessBase"]
[PlyCount "126"]
[EventDate "2018.10.05"]
[EventType "swiss"]
[EventCountry "IND"]
[SourceTitle "playchess.com"]
[Source "ChessBase"]
[SourceQuality "1"]
[TimeControl "5400+30"]

1. d4 {[%emt 0:02:22]} Nf6 {[%emt 0:00:00]} 2. c4 {[%emt 0:00:08]} g6 {[%emt 0:00:00]} 3. Nc3 {[%emt 0:00:06]} Bg7 {[%emt 0:00:00]} 4. e4 {[%emt 0:00:07]} d6 {[%emt 0:00:02]} 5. f3 {[%emt 0:00:20]} O-O {[%emt 0:00:57]} 6. Be3 {[%emt 0:00:08]} c5 {[%emt 0:00:26]} 7. Nge2 {[%emt 0:00:18]} Nc6 {[%emt 0:00:25]} 8. d5 {[%emt 0:00:20]} Ne5 {[%emt 0:00:23]} 9. Ng3 {[%emt 0:00:13]} e6 {[%emt 0:00:33]} 10. Be2 {[%emt 0:00:37]} exd5 {[%emt 0:00:41]} 11. cxd5 {[%emt 0:00:08]} h5 {[%emt 0:00:09]} 12. O-O {[%emt 0:00:33]} Nh7 {[%emt 0:00:07]} 13. Qd2 {[%emt 0:00:49]} Bd7 {[%emt 0:00:24]} 14. h3 {[%emt 0:12:29]} h4 {[%emt 0:01:56]} 15. Nh1 {[%emt 0:00:06]} f5 {[%emt 0:00:39]} 16. Nf2 {[%emt 0:03:53]} a6 {[%emt 0:03:50]} 17. a4 {[%emt 0:00:09]} Qf6 {[%emt 0:02:42]} 18. f4 {[%emt 0:05:55]} Nf7 {[%emt 0:00:41]} 19. exf5 {[%emt 0:02:21]} gxf5 {[%emt 0:00:57]} 20. Kh2 {[%emt 0:02:09]} Rfe8 {[%emt 0:04:48]} 21. Rae1 {[%emt 0:04:28]} Qg6 {[%emt 0:05:31]} 22. Nfd1 {[%emt 0:07:42]} Nf6 {[%emt 0:06:30]} 23. Bf2 {[%emt 0:01:51]} Qh6 {[%emt 0:04:58]} 24. Bd3 {[%emt 0:04:58]} Ne5 {[%emt 0:13:30]} 25. Bc2 {[%emt 0:03:58]} b5 {[%emt 0:03:54]} 26. b3 {[%emt 0:05:01]} Ng6 {[%emt 0:05:15]} 27. axb5 {[%emt 0:09:20]} axb5 {[%emt 0:00:50]} 28. Bd3 {[%emt 0:00:23]} b4 {[%emt 0:12:49]} 29. Nb5 {[%emt 0:09:33]} Ne4 {[%emt 0:07:38]} 30. Bxe4 {[%emt 0:01:16]} Bxb5 {[%emt 0:00:02]} 31. Bd3 {[%emt 0:00:29]} Bxd3 {[%emt 0:00:25]} 32. Qxd3 {[%emt 0:00:07]} Qxf4+ {[%emt 0:00:26]} 33. Kh1 {[%emt 0:00:57]} Rxe1 {[%emt 0:06:03]} 34. Bxe1 {[%emt 0:02:00]} Qe4 {[%emt 0:00:25]} 35. Qd2 {[%emt 0:04:05]} Re8 {[%emt 0:04:28]} 36. Qg5 {[%emt 0:03:51]} Qe2 {[%emt 0:01:37]} 37. Rg1 {[%emt 0:00:06]} Qxd1 {[%emt 0:00:56]} 38. Bxh4 {[%emt 0:00:09]} Qxd5 {[%emt 0:01:28]} 39. Qxg6 {[%emt 0:00:07]} Re3 {[%emt 0:05:37]} 40. Kh2 {[%emt 0:01:30]} Qe6 {[%emt 0:04:13]} 41. Qg5 {[%emt 0:01:27]} f4 {[%emt 0:01:25]} 42. Ra1 {[%emt 0:01:22]} Qe5 {[%emt 0:00:38]} 43. Qd8+ {[%emt 0:02:33]} Qe8 {[%emt 0:01:03]} 44. Qg5 {[%emt 0:01:25]} f3 {[%emt 0:00:41]} 45. Bg3 {[%emt 0:00:49]} Re5 {[%emt 0:00:50]} 46. Qg4 {[%emt 0:00:07]} Re4 {[%emt 0:01:13]} 47. Qg5 {[%emt 0:00:23]} Re5 {[%emt 0:00:30]} 48. Qg4 {[%emt 0:00:06]} fxg2 {[%emt 0:00:48]} 49. Ra7 {[%emt 0:00:47]} Re7 {[%emt 0:00:05]} 50. Qc4+ {[%emt 0:00:38]} Rf7 {[%emt 0:00:41]} 51. Qd5 {[%emt 0:01:34]} g1=Q+ {[%emt 0:00:23]} 52. Kxg1 {[%emt 0:00:04]} Qe3+ {[%emt 0:00:33]} 53. Kg2 {[%emt 0:01:56]} Qe2+ {[%emt 0:00:04]} 54. Kh1 {[%emt 0:00:09]} Qf1+ {[%emt 0:00:06]} 55. Kh2 {[%emt 0:00:04]} Qe2+ {[%emt 0:00:05]} 56. Kh1 {[%emt 0:00:04]} Qf3+ {[%emt 0:00:25]} 57. Qxf3 {[%emt 0:00:08]} Rxf3 {[%emt 0:00:05]} 58. Bxd6 {[%emt 0:00:15]} Bd4 {[%emt 0:01:17]} 59. Ra5 {[%emt 0:02:45]} Rxh3+ {[%emt 0:01:01]} 60. Kg2 {[%emt 0:00:06]} Rc3 {[%emt 0:00:14]} 61. Kf1 {[%emt 0:01:06]} Kf7 {[%emt 0:00:14]} 62. Ke2 {[%emt 0:00:05]} Ke6 {[%emt 0:00:04]} 63. Bf8 {[%emt 0:00:08]} Ke5 0-1

[Event "1st Gujarat GM Open 2018"]
[Site "Ahmedabad"]
[Date "2018.10.07"]
[Round "3"]
[White "Swati Ghate"]
[Black "Fenil, Shah"]
[Result "1/2-1/2"]
[ECO "B12"]
[WhiteElo "2215"]
[BlackElo "2411"]
[Annotator "ChessBase"]
[PlyCount "102"]
[EventDate "2018.10.05"]
[EventType "swiss"]
[EventCountry "IND"]
[SourceTitle "playchess.com"]
[Source "ChessBase"]
[SourceQuality "1"]
[TimeControl "5400+30"]

1. e4 {[%emt 0:01:26]} c6 {[%emt 0:00:00]} 2. d4 {[%emt 0:00:31]} d5 {[%emt 0:00:01]} 3. e5 {[%emt 0:00:03]} Bf5 {[%emt 0:00:05]} 4. Nd2 {[%emt 0:00:09]} e6 {[%emt 0:00:05]} 5. Nb3 {[%emt 0:00:05]} c5 {[%emt 0:00:11]} 6. dxc5 {[%emt 0:01:32]} Bxc5 {[%emt 0:00:23]} 7. Nxc5 {[%emt 0:12:10]} Qa5+ {[%emt 0:00:04]} 8. c3 {[%emt 0:00:05]} Qxc5 {[%emt 0:00:03]} 9. Nf3 {[%emt 0:00:06]} Qc7 {[%emt 0:10:14]} 10. Nd4 {[%emt 0:12:06]} Qxe5+ {[%emt 0:11:44]} 11. Be2 {[%emt 0:01:54]} Nc6 {[%emt 0:19:28]} 12. Qb3 {[%emt 0:08:19]} Nge7 {[%emt 0:09:36]} 13. Qxb7 {[%emt 0:04:55]} Rb8 {[%emt 0:00:31]} 14. Nxc6 {[%emt 0:16:52]} Qxe2+ {[%emt 0:00:18]} 15. Kxe2 {[%emt 0:00:05]} Rxb7 {[%emt 0:00:02]} 16. Nxe7 {[%emt 0:02:30]} Kxe7 {[%emt 0:00:16]} 17. b4 {[%emt 0:01:54]} Rc8 {[%emt 0:01:58]} 18. Bd2 {[%emt 0:00:06]} Rc4 {[%emt 0:14:41]} 19. f3 {[%emt 0:02:03]} a5 {[%emt 0:04:12]} 20. Rhc1 {[%emt 0:05:18]} a4 {[%emt 0:07:58]} 21. a3 {[%emt 0:03:49]} e5 {[%emt 0:00:28]} 22. Be3 {[%emt 0:00:31]} f6 {[%emt 0:01:39]} 23. Ra2 {[%emt 0:02:56]} h5 {[%emt 0:03:58]} 24. Rb2 {[%emt 0:03:21]} Rb5 {[%emt 0:00:15]} 25. Kd2 {[%emt 0:01:34]} g5 {[%emt 0:01:12]} 26. g3 {[%emt 0:04:02]} Ke6 {[%emt 0:01:35]} 27. Re1 {[%emt 0:00:33]} Kf7 {[%emt 0:01:58]} 28. Rc1 {[%emt 0:02:20]} Rc8 {[%emt 0:00:45]} 29. Ra2 {[%emt 0:02:51]} Rc4 {[%emt 0:03:00]} 30. Rb2 {[%emt 0:01:59]} Kg6 {[%emt 0:00:06]} 31. Ra2 {[%emt 0:00:29]} Be6 {[%emt 0:01:31]} 32. Rb2 {[%emt 0:00:18]} Rc8 {[%emt 0:00:26]} 33. Ke1 {[%emt 0:05:39]} g4 {[%emt 0:00:54]} 34. f4 {[%emt 0:01:11]} Bf5 {[%emt 0:00:34]} 35. fxe5 {[%emt 0:01:11]} fxe5 {[%emt 0:00:00]} 36. Rf2 {[%emt 0:01:15]} Rb7 {[%emt 0:03:43]} 37. Kd2 {[%emt 0:01:10]} Be4 {[%emt 0:00:50]} 38. Bc5 {[%emt 0:00:58]} Bf3 {[%emt 0:00:10]} 39. h4 {[%emt 0:00:18]} Kf5 {[%emt 0:00:23]} 40. Be3 {[%emt 0:00:17]} Rc4 {[%emt 0:00:56]} 41. Rff1 {[%emt 0:00:36]} Ke6 {[%emt 0:02:11]} 42. Rfe1 {[%emt 0:00:20]} Kf6 {[%emt 0:01:27]} 43. Bg5+ {[%emt 0:00:40]} Kf5 {[%emt 0:00:09]} 44. Be3 {[%emt 0:00:45]} Rb5 {[%emt 0:00:05]} 45. Bc5 {[%emt 0:00:44]} Ke6 {[%emt 0:01:29]} 46. Bd4 {[%emt 0:00:22]} Be4 {[%emt 0:00:00]} 47. Be3 {[%emt 0:00:01]} Rb8 {[%emt 0:00:38]} 48. Rf1 {[%emt 0:00:14]} Rbc8 {[%emt 0:00:25]} 49. Bc5 {[%emt 0:00:25]} Bf3 {[%emt 0:01:14]} 50. Rce1 {[%emt 0:00:24]} Kf5 {[%emt 0:00:31]} 51. Re3 {[%emt 0:01:29]} Rc6 1/2-1/2